bitfinex-derivatives/quotes_BTCF0:USTF0_20251030
["timestamp","ask_amount","ask_price","bid_price","bid_amount"]
[1761802498955,0.05751,109310.0,109300.0,0.07766967]
[1761802500250,0.05751,109310.0,109300.0,0.07866967]
[1761802500468,0.05751,109310.0,109300.0,0.12776364]
[1761802500860,0.37487,109310.0,109300.0,0.12776364]
[1761802501176,0.05751,109300.0,109290.0,0.04909397]
[1761802501369,0.05751,109300.0,109290.0,0.03264821]
[1761802501370,0.76847159,109300.0,109290.0,0.03264821]
[1761802501675,0.46107,109300.0,109290.0,0.03264821]
[1761802501965,0.05751,109290.0,109280.0,0.04909397]
[1761802502163,1.10583159,109290.0,109280.0,0.04909397]
[1761802503559,1.10583159,109290.0,109280.0,0.05009397]
[1761802503764,1.10583159,109290.0,109280.0,0.001]
[1761802506262,1.08307159,109290.0,109280.0,0.05009397]
[1761802506469,0.73567,109290.0,109280.0,0.05009397]
[1761802506770,0.73567,109290.0,109280.0,0.001]
[1761802507160,1.35567,109290.0,109280.0,0.001]
[1761802507964,1.70307159,109290.0,109280.0,0.001]
[1761802508165,1.70407159,109290.0,109280.0,0.001]
[1761802508363,1.10683159,109290.0,109280.0,0.001]
[1761802508859,0.05733,109280.0,109270.0,0.04909397]
[1761802509068,0.05733,109260.0,109250.0,0.08679309]
[1761802509364,1.08293159,109260.0,109250.0,0.02120592]
[1761802509671,1.44649159,109260.0,109250.0,0.08679309]
[1761802509875,1.44373159,109260.0,109250.0,0.08679309]
[1761802510171,1.44373159,109260.0,109250.0,0.02120592]
[1761802510558,1.69633,109260.0,109250.0,0.02120592]
[1761802510971,1.44649159,109260.0,109250.0,0.02120592]
[1761802511365,1.44373159,109260.0,109250.0,0.02120592]
[1761802511675,1.44973159,109260.0,109250.0,0.02120592]
[1761802514187,1.10233,109260.0,109250.0,0.02120592]
[1761802514375,1.44973159,109260.0,109250.0,0.02120592]
[1761802515972,2.04973159,109260.0,109250.0,0.02120592]
[1761802517568,2.05249159,109260.0,109250.0,0.02120592]
[1761802517977,2.04973159,109260.0,109250.0,0.02120592]
[1761802520177,2.0588595,109260.0,109250.0,0.02120592]
[1761802521178,2.0888595,109260.0,109250.0,0.02120592]
[1761802521978,0.05871,109240.0,109230.0,0.06558717]
[1761802522174,1.08443159,109240.0,109230.0,0.06558717]
[1761802523173,1.10443159,109240.0,109230.0,0.06558717]
[1761802523373,0.05871,109230.0,109220.0,0.06565708]
[1761802523679,0.41951,109230.0,109220.0,0.08733708]
[1761802523977,0.41951,109230.0,109220.0,0.11020708]
[1761802524772,0.42051,109230.0,109220.0,0.04461991]
[1761802526362,0.42051,109230.0,109220.0,0.05384292]
[1761802526777,0.42051,109230.0,109220.0,0.04461991]
[1761802528377,0.42051,109230.0,109220.0,0.11927133]
[1761802529477,0.05971,109230.0,109220.0,0.11927133]
[1761802529677,0.05971,109230.0,109220.0,0.13609867]
[1761802529879,0.42051,109230.0,109220.0,0.13609867]
[1761802530379,0.05971,109230.0,109220.0,0.05368416]
[1761802530776,0.05971,109230.0,109220.0,0.04461991]
[1761802531868,0.05971,109230.0,109220.0,0.10992585]
[1761802533468,0.05971,109230.0,109220.0,0.06537585]
[1761802533672,0.42051,109230.0,109220.0,0.06537585]
[1761802534379,0.42051,109230.0,109220.0,0.10992585]
[1761802534572,0.05971,109230.0,109220.0,0.04461991]
[1761802535876,0.37727,109230.0,109220.0,0.04461991]
[1761802536183,0.37727,109230.0,109220.0,0.12703442]
[1761802538486,0.37727,109230.0,109220.0,0.08248442]
[1761802538785,0.73807,109230.0,109220.0,0.08248442]
[1761802539287,0.73807,109230.0,109220.0,6.991e-05]
[1761802539484,0.37727,109230.0,109220.0,0.12665442]
[1761802540177,0.37727,109230.0,109220.0,0.04423991]
[1761802541389,0.54332927,109230.0,109220.0,0.04423991]
[1761802541588,0.54332927,109230.0,109220.0,6.991e-05]
[1761802542476,0.37727,109230.0,109220.0,6.991e-05]
[1761802542788,0.54332927,109230.0,109220.0,6.991e-05]
[1761802543377,0.54334036,109230.0,109220.0,6.991e-05]
[1761802544091,0.90414036,109230.0,109220.0,6.991e-05]
[1761802544885,0.90414036,109230.0,109220.0,0.04423991]
[1761802545590,0.54334036,109230.0,109220.0,0.02317991]
[1761802545795,0.90414036,109230.0,109220.0,6.991e-05]
[1761802546493,0.90414036,109230.0,109220.0,0.02317991]
[1761802546990,0.90414036,109230.0,109220.0,6.991e-05]
[1761802549489,0.54334036,109230.0,109220.0,0.04423991]
[1761802549690,0.05971,109230.0,109220.0,0.73718063]
[1761802550299,0.05971,109230.0,109220.0,0.57111027]
[1761802551307,0.05971,109230.0,109220.0,0.73718063]
[1761802551608,0.05971,109230.0,109220.0,0.83150133]
[1761802551805,0.04619,109230.0,109220.0,0.84158133]
[1761802553106,0.001,109230.0,109220.0,1.15910133]
[1761802553303,0.001,109230.0,109220.0,1.23875584]
[1761802553809,0.001,109230.0,109220.0,1.35151584]
[1761802554109,0.001,109230.0,109220.0,0.90937512]
[1761802554314,0.05816,109240.0,109230.0,0.04417]
[1761802554614,0.05816,109240.0,109230.0,0.57104036]
[1761802555202,0.08251566,109240.0,109230.0,0.57104036]
[1761802556113,0.06899566,109240.0,109230.0,0.67467246]
[1761802556317,0.02435566,109240.0,109230.0,0.84074282]
[1761802556505,0.02435566,109240.0,109230.0,0.67467246]
[1761802556814,0.02435566,109240.0,109230.0,0.67743246]
[1761802557212,0.04664566,109240.0,109230.0,0.67743246]
[1761802557515,0.04664566,109240.0,109230.0,0.71605615]
[1761802558409,0.02229,109240.0,109230.0,0.71605615]
[1761802558601,0.04464,109240.0,109230.0,0.71605615]
[1761802558803,0.08196124,109240.0,109230.0,0.40497]
[1761802559417,0.05764,109240.0,109230.0,0.40497]
[1761802559808,0.04464,109240.0,109230.0,0.5086023]
[1761802560418,0.04464,109240.0,109230.0,0.71605635]
[1761802560721,0.04464,109240.0,109230.0,0.5086023]
[1761802560925,0.04564,109240.0,109230.0,0.4965223]
[1761802561118,0.05864,109240.0,109230.0,0.40497]
[1761802561725,0.05864,109240.0,109230.0,0.72241]
[1761802564225,0.19824,109240.0,109230.0,0.72241]
[1761802565326,0.22254134,109240.0,109230.0,0.40497]
[1761802567826,0.22254134,109240.0,109230.0,0.04417]
[1761802567827,0.42999539,109240.0,109230.0,0.04417]
[1761802568032,0.05631,109230.0,109220.0,0.04529991]
[1761802568234,0.60550539,109230.0,109220.0,0.04529991]
[1761802569129,0.39805134,109230.0,109220.0,0.04529991]
[1761802569436,0.37371,109230.0,109220.0,0.61755396]
[1761802569729,0.37371,109230.0,109220.0,0.70911466]
[1761802569931,0.04289,109230.0,109220.0,0.62131396]
[1761802570235,0.05631,109230.0,109220.0,0.72449991]
[1761802571031,0.05631,109230.0,109220.0,0.81505951]
[1761802571430,0.05631,109230.0,109220.0,0.72349991]
[1761802571833,0.05731,109230.0,109220.0,0.72349991]
[1761802573637,0.05731,109230.0,109220.0,0.81506001]
[1761802574736,0.001,109230.0,109220.0,1.30751406]
[1761802574932,0.1396,109240.0,109230.0,0.1475818]
[1761802575139,0.16181,109240.0,109230.0,0.62428405]
[1761802575638,0.18514,109240.0,109230.0,0.62428405]
[1761802575837,0.19814,109240.0,109230.0,0.40475]
[1761802576041,0.22281293,109240.0,109230.0,0.40475]
[1761802576940,0.22381293,109240.0,109230.0,0.40475]
[1761802577936,0.22481293,109240.0,109230.0,0.40475]
[1761802578140,1.11046698,109240.0,109230.0,0.02186]
[1761802578337,1.10946698,109240.0,109230.0,0.02186]
[1761802578538,0.54321293,109240.0,109230.0,0.04395]
[1761802578738,0.40361293,109240.0,109230.0,0.04395]
[1761802579333,0.56963034,109240.0,109230.0,0.04395]
[1761802584351,0.59430788,109240.0,109230.0,0.04395]
[1761802585151,0.05854,109230.0,109220.0,0.40481991]
[1761802585344,0.24923034,109230.0,109220.0,0.40481991]
[1761802586240,0.25023034,109230.0,109220.0,0.21003732]
[1761802586445,0.25023034,109230.0,109220.0,0.04401991]
[1761802587941,0.25023034,109230.0,109220.0,0.40481991]
[1761802589051,0.25023034,109230.0,109220.0,0.36086991]
[1761802589350,0.27490788,109230.0,109220.0,0.36086991]
[1761802590050,0.27490788,109230.0,109220.0,6.991e-05]
[1761802590451,0.44092529,109230.0,109220.0,6.991e-05]
[1761802590651,0.27490788,109230.0,109220.0,6.991e-05]
[1761802592739,0.83449348,109230.0,109220.0,6.991e-05]
[1761802592940,0.05854,109200.0,109190.0,0.40475]
[1761802593153,0.73260775,109200.0,109190.0,0.40475]
[1761802593853,0.73267738,109200.0,109190.0,0.04395]
[1761802594249,0.73267738,109200.0,109190.0,0.04795]
[1761802594757,0.73267738,109200.0,109190.0,0.04395]
[1761802595054,0.73367738,109200.0,109190.0,0.05430949]
[1761802595249,0.73367738,109200.0,109190.0,0.01035949]
[1761802595645,0.73367738,109200.0,109190.0,0.00935949]
[1761802595846,0.05753,109190.0,109180.0,0.47857852]
[1761802596047,0.24822034,109190.0,109180.0,0.47857852]
[1761802596350,0.08220293,109190.0,109180.0,0.64459593]
[1761802596739,0.49948704,109200.0,109190.0,0.02309]
[1761802596951,0.08368818,109200.0,109190.0,0.57300741]
[1761802597146,0.07068818,109200.0,109190.0,0.58508741]
[1761802598049,0.08229818,109200.0,109190.0,0.57300741]
[1761802598550,0.08229818,109200.0,109190.0,0.58230833]
[1761802598747,0.06868818,109200.0,109190.0,0.59438833]
[1761802598950,0.08329818,109200.0,109190.0,0.59438833]
[1761802599152,0.08329818,109200.0,109190.0,0.58230833]
[1761802599449,0.24931559,109200.0,109190.0,0.58230833]
[1761802599848,0.08329818,109200.0,109190.0,0.58230833]
[1761802600545,0.24931559,109200.0,109190.0,0.58230833]
[1761802601154,0.24831559,109200.0,109190.0,0.58230833]
[1761802601355,0.24931559,109200.0,109190.0,0.58230833]
[1761802602153,0.25031559,109200.0,109190.0,0.58230833]
[1761802602847,0.24831559,109200.0,109190.0,0.58230833]
[1761802603042,0.24931559,109200.0,109190.0,0.41629092]
[1761802603758,0.25031559,109200.0,109190.0,0.41629092]
[1761802605254,0.25131559,109200.0,109190.0,0.41629092]
[1761802605556,0.25144034,109200.0,109190.0,0.41629092]
[1761802606461,0.25144034,109200.0,109190.0,0.05549092]
[1761802607858,0.25144034,109200.0,109190.0,0.03239092]
[1761802608059,0.39094772,109200.0,109190.0,0.03239092]
[1761802608258,0.02167,109190.0,109180.0,0.45547852]
[1761802608559,0.56567809,109190.0,109180.0,0.47857852]
[1761802608759,0.39953593,109190.0,109180.0,0.48779794]
[1761802609159,0.39953593,109190.0,109180.0,0.46469794]
[1761802609160,0.56567809,109190.0,109180.0,0.46469794]
[1761802609460,0.56667809,109190.0,109180.0,0.46469794]
[1761802609856,0.56667809,109190.0,109180.0,0.48779794]
[1761802610158,0.56667809,109190.0,109180.0,0.41620942]
[1761802610364,0.56667809,109190.0,109180.0,0.39310942]
[1761802610565,0.56667809,109190.0,109180.0,0.37001942]
[1761802611269,0.56667809,109190.0,109180.0,0.3608]
[1761802616574,0.40053593,109190.0,109180.0,0.38389]
[1761802616767,0.56667809,109190.0,109180.0,0.3608]
[1761802617165,0.05753,109160.0,109150.0,0.40699]
[1761802617372,0.24837659,109160.0,109150.0,0.40699]
[1761802617669,0.24837659,109160.0,109150.0,1.9161489]
[1761802618268,0.08223443,109160.0,109150.0,1.9161489]
[1761802618584,0.08223443,109160.0,109150.0,1.9171489]
[1761802618872,0.08223443,109160.0,109150.0,1.9211489]
[1761802620166,0.24837659,109160.0,109150.0,1.9211489]
[1761802621063,0.08223443,109160.0,109150.0,1.9211489]
[1761802621470,0.02470443,109160.0,109150.0,2.09937106]
[1761802621771,0.0217685,109160.0,109150.0,2.09937106]
[1761802622077,0.0440185,109160.0,109150.0,1.9332289]
[1761802622275,0.06864656,109160.0,109150.0,1.9332289]
[1761802624980,0.08145656,109160.0,109150.0,1.9332289]
[1761802625281,0.06864656,109160.0,109150.0,1.9332289]
[1761802629185,0.08145656,109160.0,109150.0,1.9332289]
[1761802629577,0.06864656,109160.0,109150.0,1.9332289]
[1761802629782,0.06864656,109160.0,109150.0,2.2506289]
[1761802630388,0.08145656,109160.0,109150.0,2.2385489]
[1761802630899,0.24759872,109160.0,109150.0,2.2385489]
[1761802631592,0.24759872,109160.0,109150.0,1.9211489]
[1761802632096,0.24759872,109160.0,109150.0,2.2385489]
[1761802633992,0.24759872,109160.0,109150.0,2.2506289]
[1761802633993,0.02472656,109160.0,109150.0,2.2506289]
[1761802634196,0.02472656,109160.0,109150.0,2.41677106]
[1761802634798,0.02472656,109160.0,109150.0,2.2506289]
[1761802635200,0.02472656,109160.0,109150.0,2.41677106]
[1761802636804,0.02472656,109160.0,109150.0,2.50838916]
[1761802637001,0.1396,109170.0,109160.0,0.04492]
[1761802637308,0.16434412,109170.0,109160.0,0.4158]
[1761802638304,0.20839412,109170.0,109160.0,0.4168]
[1761802638489,0.22220412,109170.0,109160.0,0.40672]
[1761802638694,0.38834628,109170.0,109160.0,0.72412]
[1761802639302,0.38834628,109170.0,109160.0,0.72712]
[1761802640107,0.20839412,109170.0,109160.0,0.7372]
[1761802640288,0.16434412,109170.0,109160.0,0.7372]
[1761802640495,0.16434412,109170.0,109160.0,0.90334216]
[1761802640904,0.16434412,109170.0,109160.0,0.99495186]
[1761802641102,0.08231002,109190.0,109180.0,0.04492]
[1761802641408,0.10707033,109190.0,109180.0,0.72308]
[1761802641709,0.09346033,109190.0,109180.0,0.72708]
[1761802641890,0.04704031,109190.0,109180.0,0.72708]
[1761802642207,0.08251002,109200.0,109190.0,0.04492]
[1761802642502,0.10726024,109200.0,109190.0,0.40572]
[1761802642710,0.2734024,109200.0,109190.0,0.40572]
[1761802644506,0.2744024,109200.0,109190.0,0.40572]
[1761802645200,0.25075238,109200.0,109190.0,0.40572]
[1761802645605,0.08561022,109200.0,109190.0,0.40572]
[1761802646200,0.08461022,109200.0,109190.0,0.40572]
[1761802646911,0.02675022,109200.0,109190.0,0.4178]
[1761802647213,0.04405,109200.0,109190.0,0.4178]
[1761802647512,0.06977021,109200.0,109190.0,0.4178]
[1761802647811,0.06977021,109200.0,109190.0,0.73512]
[1761802648200,0.04405,109200.0,109190.0,0.73512]
[1761802649409,0.02228,109200.0,109190.0,0.73612]
[1761802649613,0.17995216,109210.0,109190.0,0.73612]
[1761802649915,0.24871323,109210.0,109200.0,0.40572]
[1761802651208,0.73598,109220.0,109210.0,0.04492]
[1761802651416,0.76068144,109220.0,109210.0,0.04492]
[1761802651606,0.9268236,109220.0,109210.0,0.04492]
[1761802652615,0.9278236,109220.0,109210.0,0.04492]
[1761802652818,0.9278236,109220.0,109210.0,0.05394282]
[1761802653328,0.9288236,109220.0,109210.0,0.05394282]
[1761802653504,0.40188144,109220.0,109210.0,0.05394282]
[1761802653811,0.40188144,109220.0,109210.0,0.41874282]
[1761802654019,0.40188144,109220.0,109210.0,0.41474282]
[1761802654219,0.40288144,109220.0,109210.0,0.41474282]
[1761802654410,0.5690236,109220.0,109210.0,0.73198282]
[1761802654612,0.37818,109220.0,109210.0,0.73198282]
[1761802655119,0.37718,109220.0,109210.0,0.73198282]
[1761802655616,0.37618,109220.0,109210.0,0.73198282]
[1761802656714,0.54232216,109220.0,109210.0,0.73198282]
[1761802657718,0.02277,109220.0,109210.0,0.73598282]
[1761802658013,0.001,109220.0,109210.0,0.99369158]
[1761802658414,0.001,109220.0,109210.0,0.99645158]
[1761802659010,0.22480216,109240.0,109230.0,0.04425]
[1761802659215,0.24946048,109240.0,109230.0,0.40505]
[1761802660322,0.25046048,109240.0,109230.0,0.40505]
[1761802660818,0.25046048,109240.0,109230.0,0.04425]
[1761802661611,0.25246048,109240.0,109230.0,0.04425]
[1761802665218,0.61326048,109240.0,109230.0,0.04425]
[1761802665414,0.058,109230.0,109220.0,0.04425]
[1761802665617,0.24880048,109230.0,109220.0,0.72221]
[1761802667014,0.73310264,109230.0,109220.0,0.0224]
[1761802667223,0.058,109220.0,109210.0,0.41407282]
[1761802667411,0.41485234,109220.0,109210.0,0.41407282]
[1761802668309,0.41485234,109220.0,109210.0,0.39222282]
[1761802668510,0.41485234,109220.0,109210.0,0.3608]
[1761802668713,0.41485234,109220.0,109210.0,0.3832]
[1761802669317,0.41485234,109220.0,109210.0,0.40505]
[1761802670128,0.43950236,109220.0,109210.0,0.40605]
[1761802670524,0.41485234,109220.0,109210.0,0.40605]
[1761802672726,0.41485234,109220.0,109210.0,0.04525]
[1761802672921,0.43950236,109220.0,109210.0,0.04525]
[1761802674426,0.10730834,109220.0,109210.0,0.04525]
[1761802674617,0.10730834,109220.0,109210.0,0.40605]
[1761802674618,0.41485234,109220.0,109210.0,0.40605]
[1761802675435,0.43950236,109220.0,109210.0,0.40605]
[1761802676936,0.10730834,109220.0,109210.0,0.40605]
[1761802677133,0.43950236,109220.0,109210.0,0.40605]
[1761802678739,0.04930834,109220.0,109210.0,0.89934701]
[1761802679033,0.02465832,109220.0,109210.0,0.99091371]
[1761802679245,0.02465832,109220.0,109210.0,1.25091371]
[1761802679427,0.02465002,109230.0,109220.0,0.04825]
[1761802679627,0.02465002,109230.0,109220.0,0.57514701]
[1761802679823,0.02465002,109230.0,109220.0,0.57790701]
[1761802680035,0.02465002,109230.0,109220.0,0.66670541]
[1761802680223,0.02465002,109230.0,109220.0,0.66946541]
[1761802680729,0.02565002,109230.0,109220.0,0.66946541]
[1761802680938,0.19174703,109230.0,109220.0,0.57790701]
[1761802681131,0.21384703,109230.0,109220.0,0.40905]
[1761802681640,0.23559703,109230.0,109220.0,0.40905]
[1761802682031,0.24874703,109230.0,109220.0,0.57514701]
[1761802682228,0.24874703,109230.0,109220.0,0.40905]
[1761802682433,0.11557315,109230.0,109220.0,0.40905]
[1761802682642,0.21284703,109230.0,109220.0,0.57514701]
[1761802682940,0.24578652,109230.0,109220.0,0.57514701]
[1761802683139,0.26853652,109230.0,109220.0,0.57514701]
[1761802683337,0.24578652,109230.0,109220.0,0.57514701]
[1761802683646,0.26953652,109230.0,109220.0,0.57614701]
[1761802684247,0.26953652,109230.0,109220.0,0.57514701]
[1761802684640,0.26853652,109230.0,109220.0,0.57514701]
[1761802685137,0.23561339,109230.0,109220.0,0.57514701]
[1761802686344,0.21286339,109230.0,109220.0,0.57514701]
[1761802687445,0.21386339,109230.0,109220.0,0.57514701]
[1761802687741,0.23709339,109230.0,109220.0,0.57514701]
[1761802688332,0.25028339,109230.0,109220.0,0.40905]
[1761802688547,0.25028339,109230.0,109220.0,0.04425]
[1761802688733,0.25854014,109230.0,109220.0,0.04425]
[1761802690233,0.25030465,109230.0,109220.0,0.04425]
[1761802690428,0.25030465,109230.0,109220.0,0.40505]
[1761802691442,0.27481046,109230.0,109220.0,0.40505]
[1761802692240,0.27481046,109230.0,109220.0,0.57114701]
[1761802692442,0.27481046,109230.0,109220.0,0.40505]
[1761802694649,0.10871345,109230.0,109220.0,0.40505]
[1761802694844,0.27481046,109230.0,109220.0,0.57114701]
[1761802696148,0.25012282,109230.0,109220.0,0.57114701]
[1761802696440,0.27481046,109230.0,109220.0,0.40505]
[1761802696640,0.44090747,109230.0,109220.0,0.04425]
[1761802696850,0.44090747,109230.0,109220.0,0.0224]
[1761802697144,0.75790747,109230.0,109210.0,0.3608]
[1761802697448,0.22423701,109220.0,109210.0,0.7208]
[1761802697634,0.24874282,109220.0,109210.0,0.4038]
[1761802698544,0.24874282,109220.0,109210.0,0.4048]
[1761802699044,0.08264581,109220.0,109210.0,0.4038]
[1761802699241,0.24874282,109220.0,109210.0,0.4048]
[1761802699639,0.41483983,109220.0,109210.0,0.4048]
[1761802700937,0.43952747,109220.0,109210.0,0.4048]
[1761802702152,0.27343046,109220.0,109210.0,0.4048]
[1761802702645,0.43952747,109220.0,109210.0,0.4048]
[1761802704749,0.10733345,109220.0,109210.0,0.4048]
[1761802704951,0.43952747,109220.0,109210.0,0.4048]
[1761802706754,0.10733345,109220.0,109210.0,0.4048]
[1761802707051,0.43952747,109220.0,109210.0,0.4048]
[1761802707948,0.27343046,109220.0,109210.0,0.4048]
[1761802708149,0.43952747,109220.0,109210.0,0.4048]
[1761802709455,0.41483983,109220.0,109210.0,0.4048]
[1761802709656,0.43952747,109220.0,109210.0,0.4048]
[1761802710255,0.41483983,109220.0,109210.0,0.4048]
[1761802710458,0.41483983,109220.0,109210.0,0.3618]
[1761802710657,0.41483983,109220.0,109210.0,0.38378]
[1761802710852,0.41483983,109220.0,109210.0,0.3618]
[1761802711054,0.41483983,109220.0,109210.0,0.001]
[1761802711055,0.43952747,109220.0,109210.0,0.001]
[1761802711258,0.96642448,109220.0,109210.0,0.001]
[1761802713556,0.80032747,109220.0,109210.0,0.001]
[1761802714350,0.96642448,109220.0,109210.0,0.001]
[1761802714960,0.96918448,109220.0,109210.0,0.001]
[1761802715153,0.05769,109200.0,109190.0,0.40488]
[1761802715351,0.73134983,109200.0,109190.0,0.40488]
[1761802716464,0.73134983,109200.0,109190.0,0.41501537]
[1761802716660,0.73134983,109200.0,109190.0,0.41901537]
[1761802716865,0.73134983,109200.0,109190.0,0.40988]
[1761802717060,0.73134983,109200.0,109190.0,0.04908]
[1761802717966,0.73134983,109200.0,109190.0,0.005]
[1761802718164,0.73134983,109200.0,109190.0,0.01409348]
[1761802718359,0.73134983,109200.0,109190.0,0.40988]
[1761802720070,0.56525282,109200.0,109190.0,0.57597701]
[1761802720970,0.56525282,109200.0,109190.0,0.40988]
[1761802721654,0.56525282,109200.0,109190.0,0.41898934]
[1761802723357,0.02450581,109200.0,109190.0,0.59716635]
[1761802723675,0.04432,109210.0,109200.0,0.04808]
[1761802723861,0.0688501,109210.0,109200.0,0.57497701]
[1761802724660,0.23494711,109210.0,109200.0,0.57497701]
[1761802724968,0.24831711,109210.0,109200.0,0.57497701]
[1761802725278,0.24831711,109210.0,109200.0,0.57597701]
[1761802725570,0.24831711,109210.0,109200.0,0.57797701]
[1761802726777,0.24831711,109210.0,109200.0,0.40788]
[1761802726973,0.24831711,109210.0,109200.0,0.57397701]
[1761802728361,0.24831711,109210.0,109200.0,0.40788]
[1761802728673,0.24831711,109210.0,109200.0,0.7248]
[1761802728872,0.0822201,109210.0,109200.0,0.40788]
[1761802729076,0.24831711,109210.0,109200.0,0.40788]
[1761802729368,0.24833204,109210.0,109200.0,0.40788]
[1761802729974,0.0822201,109210.0,109200.0,0.40788]
[1761802731163,0.0245301,109210.0,109200.0,0.78956754]
[1761802731365,0.02468764,109230.0,109220.0,0.05416]
[1761802731564,0.02468764,109230.0,109220.0,1.1842389]
[1761802731783,0.04750764,109230.0,109220.0,1.1842389]
[1761802731970,0.23709271,109240.0,109220.0,1.1842389]
[1761802732174,0.11530077,109240.0,109230.0,0.40488]
[1761802732577,0.08237764,109240.0,109230.0,0.40488]
[1761802733062,0.06900764,109240.0,109230.0,0.41696]
[1761802733460,0.02468764,109240.0,109230.0,1.16349438]
[1761802733671,0.02468556,109250.0,109240.0,0.1396221]
[1761802733871,0.02468556,109250.0,109240.0,0.98341404]
[1761802735564,0.45635825,109270.0,109260.0,0.04408]
[1761802735767,0.45635825,109270.0,109260.0,0.40488]
[1761802735973,0.40749313,109270.0,109260.0,0.40488]
[1761802736375,0.09061313,109270.0,109260.0,0.72176]
[1761802736880,0.07724313,109270.0,109260.0,0.73184]
[1761802737769,0.08024313,109270.0,109260.0,0.89795194]
[1761802737969,0.08024313,109270.0,109260.0,0.73184]
[1761802738182,0.003,109270.0,109260.0,0.98947704]
[1761802738373,0.003,109270.0,109260.0,1.25875194]
[1761802738563,0.09515825,109280.0,109260.0,1.25875194]
[1761802738878,0.09061313,109280.0,109270.0,0.40488]
[1761802739077,0.03292313,109280.0,109270.0,0.58307194]
[1761802739272,0.06223512,109290.0,109280.0,0.04408]
[1761802739273,0.09061313,109290.0,109280.0,0.04408]
[1761802739472,0.09061313,109290.0,109280.0,0.72168]
[1761802740083,0.08178825,109290.0,109280.0,1.29330034]
[1761802740278,0.03067063,109290.0,109280.0,1.29606034]
[1761802740478,0.10655512,109310.0,109300.0,0.04408]
[1761802740676,0.10655512,109310.0,109300.0,0.72164]
[1761802742471,0.10755512,109310.0,109300.0,0.72164]
[1761802743274,0.13107844,109310.0,109300.0,0.72164]
[1761802743876,0.13307844,109310.0,109300.0,0.72164]
[1761802744076,0.13207844,109310.0,109300.0,0.72164]
[1761802744386,0.13407844,109310.0,109300.0,0.72164]
[1761802745689,0.13407844,109310.0,109300.0,0.40488]
[1761802746696,0.07184332,109310.0,109300.0,0.77576]
[1761802747078,0.02752332,109310.0,109300.0,0.77576]
[1761802747581,0.07240332,109310.0,109300.0,0.77576]
[1761802747972,0.04953332,109310.0,109300.0,0.77576]
[1761802748179,0.06516053,109340.0,109330.0,0.1487668]
[1761802748383,0.08831828,109360.0,109350.0,0.04922]
[1761802748687,0.06544828,109360.0,109350.0,1.1672354]
[1761802748888,0.06544828,109360.0,109350.0,2.87477164]
[1761802749089,0.06544828,109370.0,109360.0,0.1406617]
[1761802749288,0.06544828,109380.0,109370.0,0.0573]
[1761802749490,0.06544828,109380.0,109370.0,0.4181]
[1761802749693,0.06544828,109380.0,109370.0,0.52325842]
[1761802750092,0.06544828,109380.0,109370.0,0.53258848]
[1761802750294,0.08831828,109390.0,109380.0,0.04522]
[1761802750495,0.06544828,109390.0,109380.0,0.05888962]
[1761802750696,0.41918,109400.0,109390.0,0.04522]
[1761802750890,0.41918,109400.0,109390.0,0.05888962]
[1761802752494,0.41918,109400.0,109390.0,0.04522]
[1761802752695,0.02287,109400.0,109390.0,0.40602]
[1761802752896,0.04488,109400.0,109390.0,0.40602]
[1761802753095,0.0442,109400.0,109390.0,0.40602]
[1761802753395,0.05731,109400.0,109390.0,0.40602]
[1761802754100,0.06431,109400.0,109390.0,0.40602]
[1761802754392,0.12955077,109400.0,109390.0,0.40602]
[1761802756698,0.12806077,109400.0,109390.0,0.41002]
[1761802756997,0.12806077,109400.0,109390.0,0.40602]
[1761802757896,0.12806077,109400.0,109390.0,0.41952434]
[1761802758198,0.12806077,109400.0,109390.0,0.48072502]
[1761802758381,0.12806077,109400.0,109390.0,0.49422502]
[1761802759191,0.05582,109390.0,109380.0,0.40542]
[1761802759390,0.37378,109390.0,109380.0,0.41901076]
[1761802759590,0.43902077,109390.0,109380.0,0.41901076]
[1761802759786,0.06524077,109390.0,109380.0,0.42909076]
[1761802760085,0.12106077,109390.0,109380.0,0.41901076]
[1761802760295,0.03724077,109400.0,109380.0,0.82325716]
[1761802760496,0.05582,109410.0,109390.0,1.0275254]
[1761802760704,0.01311,109400.0,109390.0,0.69375076]
[1761802760895,0.05582,109400.0,109390.0,1.05455076]
[1761802761103,0.05582,109400.0,109390.0,1.04096]
[1761802761589,0.05582,109400.0,109390.0,0.7216]
[1761802761802,0.05582,109400.0,109390.0,0.3608]
[1761802761992,0.05582,109390.0,109380.0,0.3608]
[1761802762191,0.05582,109390.0,109380.0,0.68016]
[1761802762598,0.37714,109400.0,109380.0,0.3608]
[1761802762796,0.37714,109400.0,109390.0,0.3608]
[1761802763702,0.37714,109400.0,109390.0,0.43452513]
[1761802764292,0.37514,109400.0,109390.0,0.3608]
[1761802765002,0.38014,109400.0,109390.0,0.3608]
[1761802765404,0.38214,109400.0,109390.0,0.3608]
[1761802767313,0.007,109400.0,109390.0,0.3608]
[1761802767499,0.02011,109400.0,109390.0,0.7712965]
[1761802767808,0.007,109400.0,109390.0,1.1186619]
[1761802768008,0.007,109400.0,109390.0,1.1214219]
[1761802768306,0.007,109400.0,109390.0,1.19385271]
[1761802769694,0.007,109400.0,109390.0,1.51385271]
[1761802769893,0.01311,109430.0,109410.0,0.0913945]
[1761802770198,0.01311,109430.0,109420.0,0.6798]
[1761802770502,0.05582,109430.0,109420.0,0.6798]
[1761802771301,0.06282,109430.0,109420.0,0.6798]
[1761802771807,0.06282,109430.0,109420.0,0.3608]
[1761802772096,0.05582,109420.0,109410.0,0.67992]
[1761802772696,0.05582,109420.0,109410.0,0.3608]
[1761802774696,0.01311,109420.0,109410.0,0.3608]
[1761802774902,0.05837,109420.0,109410.0,0.3608]
[1761802775209,0.01384,109420.0,109410.0,0.3608]
[1761802775411,0.05837,109420.0,109410.0,0.3608]
[1761802775797,0.03548,109420.0,109410.0,0.3608]
[1761802776011,0.05764,109430.0,109410.0,0.8023251]
[1761802776209,0.05764,109430.0,109420.0,0.67984]
[1761802776609,0.37391,109450.0,109420.0,0.67984]
[1761802776910,0.05837,109440.0,109420.0,1.0272054]
[1761802777216,0.03548,109440.0,109430.0,0.3608]
[1761802777412,0.05837,109440.0,109430.0,0.3608]
[1761802778099,0.05837,109440.0,109430.0,0.36999626]
[1761802780810,0.41917,109440.0,109430.0,0.00919626]
[1761802781012,0.05837,109420.0,109410.0,0.3608]
[1761802781207,0.05837,109420.0,109410.0,0.68884731]
[1761802782207,0.05837,109420.0,109410.0,0.37004731]
[1761802782422,0.05837,109420.0,109410.0,0.68880731]
[1761802783216,0.05837,109420.0,109410.0,0.37004731]
[1761802784023,0.03548,109420.0,109410.0,0.37004731]